bitfinex/quotes_BTCUSD_20240815
["timestamp","ask_amount","ask_price","bid_price","bid_amount"]
[1723751703727,0.45197154,57242.0,57241.0,0.01]
[1723751703940,0.17245654,57242.0,57241.0,0.03]
[1723751704153,0.31221354,57242.0,57241.0,0.03]
[1723751704398,0.17245654,57242.0,57241.0,0.03]
[1723751704606,0.00048311,57242.0,57241.0,0.03]
[1723751705938,0.00048311,57242.0,57241.0,0.3838]
[1723751706377,0.00048311,57242.0,57241.0,0.523559]
[1723751706626,0.00048311,57242.0,57241.0,1.10476516]
[1723751706876,0.00048311,57242.0,57241.0,1.2763197]
[1723751707088,0.00048311,57242.0,57241.0,1.5558387]
[1723751707298,0.00048311,57242.0,57241.0,1.90756661]
[1723751707516,0.00048311,57242.0,57241.0,2.04209285]
[1723751708369,0.00048311,57242.0,57241.0,2.00929324]
[1723751708579,0.00048311,57242.0,57241.0,1.8377387]
[1723751708798,0.00048311,57242.0,57241.0,0.58786816]
[1723751709027,0.00048311,57242.0,57241.0,0.01]
[1723751709229,0.00048311,57242.0,57241.0,0.449278]
[1723751709487,0.00048311,57242.0,57241.0,0.97253254]
[1723751709704,0.00048311,57242.0,57241.0,1.27421911]
[1723751709917,0.00048311,57242.0,57241.0,1.55373811]
[1723751710131,0.00048311,57242.0,57241.0,1.27421845]
[1723751710385,0.00048311,57242.0,57241.0,1.37421845]
[1723751710849,0.00048311,57242.0,57241.0,1.5415923]
[1723751711080,0.00048311,57242.0,57241.0,2.04020693]
[1723751711295,1e-08,57242.0,57241.0,2.03820693]
[1723751711749,1e-08,57242.0,57241.0,1.14224054]
[1723751711969,1e-08,57242.0,57241.0,0.86271782]
[1723751712243,1e-08,57242.0,57241.0,0.707759]
[1723751712475,1e-08,57242.0,57241.0,1.00944433]
[1723751713337,1e-08,57242.0,57241.0,0.707759]
[1723751713550,1e-08,57242.0,57241.0,0.568]
[1723751713766,0.13975701,57242.0,57241.0,0.03]
[1723751713983,1e-08,57242.0,57241.0,0.03]
[1723751716322,0.00100001,57242.0,57241.0,0.041]
[1723751717198,0.87134155,57242.0,57241.0,0.041]
[1723751717432,0.00100001,57242.0,57241.0,0.041]
[1723751718568,0.00200001,57242.0,57241.0,0.048]
[1723751718987,0.31331155,57242.0,57241.0,0.048]
[1723751719194,0.87234155,57242.0,57241.0,0.048]
[1723751719426,0.95292655,57242.0,57241.0,0.048]
[1723751719643,0.00200001,57242.0,57241.0,0.048]
[1723751720074,0.00100001,57242.0,57241.0,0.037]
[1723751720496,0.59182655,57242.0,57241.0,0.042]
[1723751720710,0.31131155,57242.0,57241.0,0.035]
[1723751720925,0.00100001,57242.0,57241.0,0.041]
[1723751721800,0.00100001,57242.0,57241.0,0.22117128]
[1723751722035,0.00100001,57242.0,57241.0,0.97440253]
[1723751722260,0.00100001,57242.0,57241.0,1.26812376]
[1723751722474,0.00100001,57242.0,57241.0,1.54764276]
[1723751722899,0.00100001,57242.0,57241.0,1.54964276]
[1723751723113,0.00100001,57242.0,57241.0,1.54464276]
[1723751723349,0.00100001,57242.0,57241.0,1.52047607]
[1723751723565,0.00100001,57242.0,57241.0,1.58643436]
[1723751723566,0.00200001,57242.0,57241.0,1.58643436]
[1723751723775,1e-08,57242.0,57241.0,1.57143436]
[1723751723985,0.00100001,57242.0,57241.0,1.58543436]
[1723751724194,0.00200001,57242.0,57241.0,1.31691536]
[1723751724402,0.00200001,57242.0,57241.0,1.27112186]
[1723751724638,0.00200001,57242.0,57241.0,0.04516479]
[1723751724893,0.00300001,57242.0,57241.0,0.057]
[1723751725320,0.00200001,57242.0,57241.0,0.043]
[1723751725746,0.00300001,57242.0,57241.0,0.057]
[1723751725959,0.00100001,57242.0,57241.0,0.63483254]
[1723751726224,0.00200001,57242.0,57241.0,1.11064866]
[1723751726430,0.00200001,57242.0,57241.0,1.37616766]
[1723751726857,0.3461,57267.0,57261.0,0.01]
[1723751727078,0.1945,57273.0,57261.0,0.169711]
[1723751727311,0.3571,57273.0,57261.0,0.169711]
[1723751727529,0.3571,57273.0,57261.0,0.47129367]
[1723751727745,0.08577727,57272.0,57261.0,0.03216067]
[1723751727954,0.08577727,57272.0,57260.0,0.01]
[1723751727955,0.139711,57261.0,57260.0,0.01]
[1723751728166,0.139711,57261.0,57260.0,0.03]
[1723751728376,0.139711,57261.0,57260.0,0.01]
[1723751728377,0.698555,57261.0,57260.0,0.01]
[1723751728632,0.796633,57261.0,57260.0,0.03]
[1723751728898,0.54905454,57261.0,57259.0,0.03]
[1723751729108,0.54905454,57261.0,57245.0,0.02216526]
[1723751729109,0.3775,57261.0,57260.0,0.03]
[1723751729325,0.54905454,57261.0,57260.0,0.03]
[1723751729534,0.96818754,57261.0,57260.0,0.03]
[1723751729960,0.54905454,57261.0,57260.0,0.03]
[1723751730172,0.96818754,57261.0,57260.0,0.032]
[1723751730387,0.54905454,57261.0,57260.0,0.032]
[1723751730599,0.001,57261.0,57260.0,0.032]
[1723751730834,0.001,57261.0,57260.0,0.03]
[1723751731065,0.3775,57273.0,57270.0,0.03]
[1723751731314,0.3775,57273.0,57272.0,0.03]
[1723751731798,0.656863,57273.0,57272.0,0.03]
[1723751731801,0.796544,57273.0,57272.0,0.01]
[1723751732009,0.517181,57273.0,57272.0,0.03]
[1723751732221,0.3775,57273.0,57272.0,0.03]
[1723751732431,0.000902,57274.0,57272.0,0.03]
[1723751732638,0.000902,57274.0,57273.0,0.02]
[1723751732853,0.000902,57274.0,57273.0,0.01]
[1723751732854,0.140581,57274.0,57273.0,0.01]
[1723751733061,0.17245654,57274.0,57273.0,0.03]
[1723751733689,0.60049354,57274.0,57273.0,0.03]
[1723751733904,0.97790529,57274.0,57273.0,0.011]
[1723751734121,1.27135154,57274.0,57273.0,0.031]
[1723751734343,0.387402,57274.0,57273.0,0.032]
[1723751734564,0.009902,57274.0,57273.0,0.032]
[1723751735234,0.87985154,57274.0,57273.0,0.032]
[1723751735896,1.30419869,57274.0,57273.0,0.002]
[1723751736108,1.55970954,57274.0,57273.0,0.002]
[1723751736314,1.55970954,57274.0,57273.0,0.012]
[1723751736753,1.55970954,57274.0,57273.0,0.032]
[1723751736754,1.28035154,57274.0,57273.0,0.032]
[1723751737799,1.00099354,57274.0,57273.0,0.032]
[1723751738265,1.55970954,57274.0,57273.0,0.002]
[1723751738481,1.65970954,57274.0,57273.0,0.002]
[1723751738938,1.68703599,57274.0,57273.0,0.002]
[1723751739192,1.96639399,57274.0,57273.0,0.002]
[1723751739424,2.15709399,57274.0,57273.0,0.002]
[1723751740103,2.15709399,57274.0,57265.0,0.03]
[1723751740104,0.698492,57266.0,57265.0,0.03]
[1723751740339,0.99304654,57266.0,57265.0,0.03]
[1723751740631,0.70370158,57274.0,57249.0,0.51466362]
[1723751740632,0.698447,57270.0,57269.0,0.03]
[1723751740847,0.698447,57270.0,57267.0,0.01]
[1723751740848,0.45093354,57270.0,57267.0,0.01]
[1723751741071,0.08577727,57271.0,57262.0,0.03]
[1723751741072,0.279412,57263.0,57262.0,0.03]
[1723751741298,0.87008454,57263.0,57262.0,0.03]
[1723751741523,0.73037854,57263.0,57262.0,0.01]
[1723751741751,0.73037854,57263.0,57262.0,0.03]
[1723751741752,0.89308454,57263.0,57262.0,0.03]
[1723751742210,0.31126054,57263.0,57262.0,0.03]
[1723751742421,0.27939,57268.0,57265.0,0.03]
[1723751742422,0.1517,57266.0,57265.0,0.03]
[1723751742675,0.17155454,57267.0,57266.0,0.02]
[1723751742890,0.59064354,57267.0,57266.0,0.03]
[1723751743173,0.31125054,57267.0,57266.0,0.03]
[1723751743387,0.17155454,57267.0,57266.0,0.03]
[1723751743599,0.31125054,57267.0,57266.0,0.03]
[1723751743857,0.59064354,57267.0,57266.0,0.03]
[1723751744086,1.14942954,57267.0,57266.0,0.03]
[1723751744316,1.17242954,57267.0,57266.0,0.02]
[1723751744537,1.18242954,57267.0,57266.0,0.011]
[1723751745154,1.19542954,57267.0,57266.0,0.012]
[1723751745351,1.34965249,57267.0,57266.0,0.012]
[1723751745553,1.19542954,57267.0,57266.0,0.002]
[1723751745757,1.29542954,57267.0,57266.0,0.002]
[1723751745972,1.98910285,57267.0,57266.0,0.002]
[1723751746596,1.70970985,57267.0,57266.0,0.002]
[1723751746797,1.4184656,57267.0,57266.0,0.002]
[1723751747055,1.29113654,57267.0,57266.0,0.022]
[1723751747265,0.98874354,57267.0,57266.0,0.032]
[1723751747867,1.26813654,57267.0,57266.0,0.032]
[1723751748092,0.98874354,57267.0,57266.0,0.032]
[1723751748333,0.023,57267.0,57266.0,0.032]
[1723751749163,0.013,57267.0,57266.0,0.031]
[1723751749584,0.419046,57273.0,57272.0,0.02]
[1723751749812,0.17155454,57273.0,57272.0,0.02]
[1723751750036,0.31123554,57273.0,57272.0,0.02]
[1723751750281,0.17155454,57273.0,57272.0,0.02]
[1723751750773,0.31123554,57273.0,57272.0,0.02]
[1723751750984,0.59059854,57273.0,57272.0,0.03]
[1723751751194,0.89296154,57273.0,57272.0,0.03]
[1723751751411,0.3791,57272.0,57267.0,0.01]
[1723751751638,0.139696,57267.0,57266.0,0.03]
[1723751751867,0.89303654,57267.0,57266.0,0.03]
[1723751752119,0.61864354,57267.0,57266.0,0.03]
[1723751752344,0.61364354,57267.0,57266.0,0.03]
[1723751753054,0.61464354,57267.0,57266.0,0.03]
[1723751753474,0.61364354,57267.0,57266.0,0.03]
[1723751753675,0.61564354,57267.0,57266.0,0.03]
[1723751754495,0.31325054,57267.0,57266.0,0.03]
[1723751754949,0.17855454,57267.0,57266.0,0.03082]
[1723751755165,0.000902,57274.0,57273.0,0.01]
[1723751755381,0.000902,57274.0,57273.0,0.03]
[1723751756664,0.87885154,57274.0,57273.0,0.031]
[1723751756891,0.87885154,57274.0,57273.0,0.011]
[1723751756892,1.25275154,57274.0,57273.0,0.011]
[1723751757112,1.25375154,57274.0,57273.0,0.011]
[1723751757754,1.27675154,57274.0,57273.0,0.011]
[1723751757960,1.27675154,57274.0,57273.0,0.031]
[1723751758165,1.27675154,57274.0,57273.0,0.011]
[1723751758411,1.27575154,57274.0,57273.0,0.031]
[1723751758625,1.26875154,57274.0,57273.0,0.03]
[1723751758829,1.26875154,57274.0,57270.0,0.01]
[1723751758830,0.139686,57271.0,57270.0,0.01]
[1723751759036,0.61361354,57271.0,57270.0,0.03]
[1723751759240,0.61361354,57271.0,57270.0,0.01]
[1723751759445,0.89298654,57271.0,57270.0,0.01]
[1723751760073,0.97445332,57271.0,57270.0,0.031]
[1723751760273,0.97445332,57271.0,57270.0,0.012]
[1723751760274,0.98845332,57271.0,57270.0,0.012]
[1723751760928,2.08809815,57271.0,57270.0,0.002]
[1723751761124,2.01065685,57271.0,57270.0,0.002]
[1723751761343,2.29002985,57271.0,57270.0,0.002]
[1723751761561,2.01065685,57271.0,57270.0,0.002]
[1723751761772,2.01065685,57271.0,57266.0,0.00082]
[1723751761773,1.257268,57267.0,57266.0,0.00082]
[1723751761980,1.93882708,57267.0,57266.0,0.00082]
[1723751762327,2.03882708,57267.0,57266.0,0.00082]
[1723751763204,2.31822008,57267.0,57266.0,0.00082]
[1723751763412,2.47310269,57267.0,57266.0,0.00082]
[1723751763663,2.46712334,57267.0,57266.0,0.00182]
[1723751764920,2.46312334,57267.0,57266.0,0.00082]
[1723751765131,2.47712334,57267.0,57266.0,0.00182]
[1723751765344,2.05282708,57267.0,57266.0,0.00182]
[1723751765515,2.34622008,57267.0,57266.0,0.00182]
[1723751765747,2.33222008,57267.0,57266.0,0.00082]
[1723751766168,2.51052008,57267.0,57266.0,0.00082]
[1723751766383,0.3447,57247.0,57243.0,0.01]
[1723751766608,0.419272,57242.0,57241.0,0.00082]
[1723751766814,1.27285654,57242.0,57241.0,0.00082]
[1723751767224,1.27285654,57242.0,57241.0,0.01082]
[1723751767439,1.27285654,57242.0,57241.0,0.00082]
[1723751767646,1.75346087,57242.0,57241.0,0.00082]
[1723751767858,1.69661605,57242.0,57241.0,0.00082]
[1723751768065,1.64489933,57242.0,57241.0,0.00082]
[1723751768276,1.61755654,57242.0,57241.0,0.00082]
[1723751768921,1.61755654,57242.0,57241.0,0.01082]
[1723751769152,1.61755654,57242.0,57241.0,0.02082]
[1723751769153,1.33804154,57242.0,57241.0,0.02082]
[1723751769354,1.00734154,57242.0,57241.0,0.03082]
[1723751769529,1.40154139,57242.0,57241.0,0.00082]
[1723751769735,1.41554139,57242.0,57241.0,0.00182]
[1723751769940,1.42954139,57242.0,57241.0,0.00182]
[1723751770151,1.41554139,57242.0,57241.0,0.00082]
[1723751770357,1.74624139,57242.0,57241.0,0.00082]
[1723751770559,2.03975639,57242.0,57241.0,0.00182]
[1723751770927,1.81195497,57242.0,57241.0,0.00182]
[1723751771129,1.76024139,57242.0,57241.0,0.00182]
[1723751771538,2.03975639,57242.0,57241.0,0.00182]
[1723751771867,2.03975639,57242.0,57238.0,0.0004]
[1723751771868,0.698822,57239.0,57238.0,0.0004]
[1723751772037,0.698895,57233.0,57232.0,0.00021033]
[1723751772239,1.60348481,57233.0,57232.0,0.00021033]
[1723751772526,2.26260081,57233.0,57232.0,0.00021033]
[1723751772729,2.41863736,57233.0,57232.0,0.00021033]
[1723751772943,2.16343888,57233.0,57232.0,0.00021033]
[1723751773149,2.19079045,57233.0,57232.0,0.00021033]
[1723751773353,2.12372766,57233.0,57232.0,0.00021033]
[1723751773463,2.41228566,57233.0,57232.0,0.00121033]
[1723751774148,1.258231,57223.0,57222.0,0.000821]
[1723751774376,1.88326281,57223.0,57222.0,0.000821]
[1723751774612,1.98326281,57223.0,57222.0,0.000821]
[1723751775294,1.59487854,57223.0,57222.0,0.000821]
[1723751775501,1.59487854,57223.0,57222.0,0.010821]
[1723751775502,0.97157154,57223.0,57222.0,0.010821]
[1723751775699,0.97157154,57223.0,57222.0,0.030821]
[1723751775700,1.25017854,57223.0,57222.0,0.030821]
[1723751776040,1.26417854,57223.0,57222.0,0.030821]
[1723751776278,0.98457154,57223.0,57222.0,0.030821]
[1723751776693,0.97057154,57223.0,57222.0,0.030821]
[1723751776902,0.98457154,57223.0,57222.0,0.030821]
[1723751777244,0.99357154,57223.0,57222.0,0.030821]
[1723751778010,1.28717854,57223.0,57222.0,0.030821]
[1723751778240,1.27317854,57223.0,57222.0,0.030821]
[1723751778754,1.70810339,57223.0,57222.0,0.000821]
[1723751778980,1.42849639,57223.0,57222.0,0.000821]
[1723751779209,1.41449639,57223.0,57222.0,0.010821]
[1723751779434,1.02157154,57223.0,57222.0,0.020821]
[1723751779654,1.02157154,57223.0,57222.0,0.030821]
[1723751779855,0.99357154,57223.0,57222.0,0.030821]
[1723751780031,1.09292869,57223.0,57222.0,0.030821]
[1723751780279,1.10692869,57223.0,57222.0,0.030821]
[1723751780507,1.00757154,57223.0,57222.0,0.030821]
[1723751781301,1.02157154,57223.0,57222.0,0.030821]
[1723751781502,1.00757154,57223.0,57222.0,0.030821]
[1723751781965,1.03557154,57223.0,57222.0,0.030821]
[1723751782389,1.02157154,57223.0,57222.0,0.030821]
[1723751782662,0.99357154,57223.0,57222.0,0.030821]
[1723751782801,1.00757154,57223.0,57222.0,0.030821]
[1723751782969,1.02157154,57223.0,57222.0,0.030821]
[1723751783170,1.00757154,57223.0,57222.0,0.030821]
[1723751783609,1.02057154,57223.0,57222.0,0.030821]
[1723751783929,1.15058909,57223.0,57222.0,0.030821]
[1723751784103,1.02057154,57223.0,57222.0,0.030821]
[1723751784679,0.19855454,57223.0,57222.0,0.030821]
[1723751785062,0.19855454,57223.0,57222.0,0.729851]
[1723751785063,0.027,57223.0,57222.0,0.729851]
[1723751785263,0.027,57223.0,57222.0,0.816339]
[1723751785478,0.027,57223.0,57222.0,1.197487]
[1723751785640,0.0186874,57223.0,57222.0,1.94235354]
[1723751785842,0.00090311,57232.0,57231.0,0.159784]
[1723751786043,0.00090311,57232.0,57231.0,0.700484]
[1723751786294,0.00090311,57232.0,57231.0,1.0880576]
[1723751786468,0.00090311,57232.0,57231.0,1.3676256]
[1723751787217,0.00090311,57232.0,57231.0,0.5707]
[1723751788270,0.00190311,57232.0,57231.0,0.5797]
[1723751788471,0.00290311,57232.0,57231.0,0.5797]
[1723751788676,0.00190311,57232.0,57231.0,0.5707]
[1723751788949,0.00190311,57232.0,57231.0,0.59060684]
[1723751789448,0.00190311,57232.0,57231.0,0.58260684]
[1723751789806,0.00069296,57232.0,57231.0,0.58260684]
[1723751790006,0.00169296,57232.0,57231.0,0.58260684]
[1723751790794,0.00269296,57232.0,57231.0,1.56585845]
[1723751791048,0.65436162,57266.0,57265.0,0.03]
[1723751791378,0.139728,57254.0,57253.0,0.01]
[1723751791574,0.419191,57253.0,57252.0,0.03]
[1723751791777,0.87020654,57253.0,57252.0,0.03]
[1723751792089,0.59074554,57253.0,57252.0,0.03]
[1723751792211,0.17155454,57253.0,57252.0,0.03]
[1723751792417,0.03,57254.0,57253.0,0.03]
[1723751793085,0.20155454,57254.0,57253.0,0.03]
[1723751793316,0.34128254,57254.0,57253.0,0.03]
[1723751793781,0.62073854,57254.0,57253.0,0.03]
[1723751794045,0.34128254,57254.0,57253.0,0.03]
[1723751794268,0.36428254,57254.0,57253.0,0.03]
[1723751794691,0.03,57254.0,57253.0,0.03]
[1723751794951,0.03,57254.0,57253.0,0.4063]
[1723751795355,0.039,57254.0,57253.0,0.4073]
[1723751795733,0.03,57254.0,57253.0,0.4063]
[1723751795934,0.03,57254.0,57253.0,0.6046]
[1723751796137,0.031,57254.0,57253.0,0.6046]
[1723751797043,0.03,57254.0,57253.0,0.6046]
[1723751797736,0.04,57269.0,57254.0,0.139727]
[1723751797961,0.04,57269.0,57268.0,0.02]
[1723751797962,0.459074,57269.0,57268.0,0.02]
[1723751798174,0.761457,57269.0,57268.0,0.02]
[1723751798631,0.19237363,57269.0,57260.0,0.01]
[1723751798864,0.19237363,57269.0,57255.0,0.03]
[1723751798865,0.279446,57256.0,57255.0,0.03]
[1723751799077,0.59072354,57256.0,57255.0,0.03]
[1723751799299,0.89316954,57256.0,57255.0,0.03]
[1723751799505,0.61372354,57256.0,57255.0,0.03]
[1723751799631,0.89316954,57256.0,57255.0,0.03]
[1723751800046,0.89316954,57256.0,57255.0,0.021]
[1723751800271,0.89316954,57256.0,57255.0,0.011]
[1723751800441,1.23997714,57256.0,57255.0,0.011]
[1723751800642,1.61942314,57256.0,57255.0,0.001]
[1723751801258,1.06053114,57256.0,57255.0,0.011]
[1723751801510,0.43427754,57256.0,57255.0,0.031]
[1723751801712,0.71472354,57256.0,57255.0,0.031]
[1723751802385,0.71472354,57256.0,57255.0,0.03]
[1723751802600,0.71372354,57256.0,57255.0,0.03]
[1723751802785,0.012,57256.0,57255.0,0.032]
[1723751803305,0.011,57256.0,57255.0,0.031]
[1723751803456,0.011,57256.0,57255.0,0.032]
[1723751803828,0.011,57256.0,57255.0,0.04338606]
[1723751804278,0.32227754,57256.0,57255.0,0.032]
[1723751804480,0.88116954,57256.0,57255.0,0.032]
[1723751804857,0.87016954,57256.0,57255.0,0.03]
[1723751805010,0.87616954,57256.0,57255.0,0.031]
[1723751805212,1.17261554,57256.0,57255.0,0.03]
[1723751805412,1.17351865,57256.0,57255.0,0.03]
[1723751805617,0.89407265,57256.0,57255.0,0.03]
[1723751806029,0.61462665,57256.0,57255.0,0.03]
[1723751806256,0.62062665,57256.0,57255.0,0.032]
[1723751806627,0.62062665,57256.0,57255.0,0.031]
[1723751808047,0.62562665,57256.0,57255.0,0.031]
[1723751808361,0.90507265,57256.0,57255.0,0.031]
[1723751808765,0.90507265,57256.0,57255.0,0.021]
[1723751808963,0.90507265,57256.0,57255.0,0.031]
[1723751809192,0.90507265,57256.0,57255.0,0.001]
[1723751809193,1.18451865,57256.0,57255.0,0.001]
[1723751809535,1.54141865,57256.0,57255.0,0.001]
[1723751809740,1.36197265,57256.0,57255.0,0.031]
[1723751810141,1.36197265,57256.0,57255.0,0.021]
[1723751810343,1.36197265,57256.0,57255.0,0.001]
[1723751810544,1.64141865,57256.0,57255.0,0.011]
[1723751810898,1.64141865,57256.0,57255.0,0.001]
[1723751814034,1.64141865,57256.0,57255.0,0.011]
[1723751814256,1.64141865,57256.0,57255.0,0.001]
[1723751815458,1.94819996,57256.0,57255.0,0.001]
[1723751816366,2.22764596,57256.0,57255.0,0.001]
[1723751816593,1.95998322,57256.0,57255.0,0.001]
[1723751816997,1.328385,57243.0,57242.0,0.03]
[1723751817156,1.52293954,57243.0,57242.0,0.03]
[1723751818243,1.55027963,57243.0,57242.0,0.03]
[1723751818780,0.61815963,57243.0,57242.0,0.034]
[1723751818963,0.1,57249.0,57248.0,0.03]
[1723751818964,0.37948,57249.0,57248.0,0.03]
[1723751819170,0.69077454,57249.0,57248.0,0.03]
[1723751819585,0.97025454,57249.0,57248.0,0.03]
[1723751819789,0.69077454,57249.0,57248.0,0.03]
[1723751820237,0.97225454,57249.0,57248.0,0.03]
[1723751820471,0.005,57249.0,57248.0,0.3937]
[1723751820651,0.005,57249.0,57248.0,0.45295]
[1723751820851,0.005,57249.0,57248.0,0.3937]
[1723751821195,0.005,57249.0,57248.0,0.03]
[1723751821196,0.87525454,57249.0,57248.0,0.03]
[1723751821611,0.87525454,57249.0,57232.0,0.000821]
[1723751821612,0.698712,57248.0,57247.0,0.01]
[1723751821813,0.698712,57248.0,57233.0,0.5625]
[1723751821814,1.23727699,57248.0,57244.0,0.03]
[1723751822018,0.97825,57245.0,57244.0,0.03]
[1723751822223,0.87030454,57245.0,57244.0,0.03]
[1723751822428,0.89330454,57245.0,57244.0,0.03]
[1723751822632,0.31130454,57245.0,57244.0,0.03]
[1723751822836,0.59080454,57245.0,57244.0,0.03]
[1723751823684,0.59180454,57245.0,57244.0,0.03]
[1723751824730,0.58180454,57245.0,57244.0,0.03]
[1723751824931,0.58280454,57245.0,57244.0,0.03]
[1723751825138,0.17155454,57245.0,57244.0,0.03]
[1723751825344,0.31430454,57245.0,57244.0,0.03]
[1723751825552,0.17855454,57245.0,57244.0,0.03]
[1723751825730,0.31830454,57245.0,57244.0,0.03]
[1723751825972,0.17855454,57245.0,57244.0,0.03]
[1723751826156,0.31130454,57245.0,57244.0,0.03]
[1723751826563,0.31130454,57245.0,57244.0,0.01]
[1723751826564,0.87230454,57245.0,57244.0,0.01]
[1723751826692,1.17480454,57245.0,57244.0,0.01]
[1723751826918,1.17780454,57245.0,57244.0,0.01]
[1723751827130,1.17780454,57245.0,57244.0,0.03]
[1723751827131,1.20514155,57245.0,57244.0,0.03]
[1723751827331,0.64614155,57245.0,57244.0,0.03]
[1723751827533,0.17655454,57245.0,57244.0,0.03]
[1723751827759,0.31630454,57245.0,57244.0,0.03]
[1723751827958,0.59380454,57245.0,57244.0,0.01]
[1723751828192,0.87330454,57245.0,57244.0,0.03]
[1723751828401,0.59680454,57245.0,57244.0,0.03]
[1723751828604,0.59380454,57245.0,57244.0,0.03]
[1723751828751,0.59080454,57245.0,57244.0,0.03]
[1723751828956,0.59080454,57245.0,57244.0,0.01]
[1723751828957,0.87430454,57245.0,57244.0,0.01]
[1723751829152,0.87230454,57245.0,57244.0,0.01]
[1723751829628,0.87330454,57245.0,57244.0,0.03]
[1723751829824,0.87030454,57245.0,57244.0,0.03]
[1723751830024,0.87730454,57245.0,57244.0,0.03]
[1723751830428,0.87730454,57245.0,57244.0,0.01]
[1723751830429,1.50820454,57245.0,57244.0,0.01]
[1723751830615,1.53120454,57245.0,57244.0,0.01]
[1723751831048,1.53120454,57245.0,57244.0,0.03]
[1723751831349,1.53120454,57245.0,57244.0,0.03082]
[1723751831551,1.70933984,57245.0,57244.0,0.01082]
[1723751831675,1.73667857,57245.0,57244.0,0.01082]
[1723751831876,1.65854327,57245.0,57244.0,0.01082]
[1723751832105,1.73682217,57245.0,57244.0,0.03082]
[1723751832308,2.12864327,57245.0,57244.0,0.00082]
[1723751832507,2.14049101,57245.0,57244.0,0.00082]
[1723751832709,2.14049101,57245.0,57232.0,0.000821]
[1723751832710,0.698895,57233.0,57232.0,0.000821]
[1723751832908,2.28617104,57233.0,57232.0,0.000821]
[1723751833156,2.21628154,57233.0,57232.0,0.000821]
[1723751833361,2.65222911,57233.0,57232.0,0.000821]
[1723751833731,2.49583954,57233.0,57232.0,0.000821]
[1723751834514,2.13050427,57233.0,57232.0,0.000821]
[1723751835863,2.15850427,57233.0,57232.0,0.000821]
[1723751836033,2.15632404,57233.0,57232.0,0.000821]
[1723751836237,2.15632404,57233.0,57232.0,0.010821]
[1723751836238,1.69366604,57233.0,57232.0,0.010821]
[1723751836480,1.31434627,57233.0,57232.0,0.010821]
[1723751836692,1.30534627,57233.0,57232.0,0.010821]
[1723751836882,1.27800754,57233.0,57232.0,0.010821]
[1723751837727,1.26400754,57233.0,57232.0,0.010821]
[1723751838075,1.26400754,57233.0,57232.0,0.000821]
[1723751838312,1.48288878,57233.0,57232.0,0.000821]
[1723751838484,1.46954272,57233.0,57232.0,0.000821]
[1723751838707,1.60791169,57233.0,57232.0,0.000821]
[1723751838887,1.57991169,57233.0,57232.0,0.000821]
[1723751839087,1.60791169,57233.0,57232.0,0.000821]
[1723751839388,1.59391169,57233.0,57232.0,0.000821]
[1723751839829,1.60791169,57233.0,57232.0,0.000821]
[1723751840400,1.30100754,57233.0,57232.0,0.010821]
[1723751840720,0.99844954,57233.0,57232.0,0.030821]
[1723751841502,1.26400754,57233.0,57232.0,0.030821]
[1723751841997,1.27800754,57233.0,57232.0,0.030821]
[1723751842198,1.61030754,57233.0,57232.0,0.010821]
[1723751842398,1.63330754,57233.0,57232.0,0.010821]
[1723751842753,1.92586554,57233.0,57232.0,0.000821]
[1723751843169,1.89886554,57233.0,57232.0,0.000821]
[1723751843568,1.92586554,57233.0,57232.0,0.000821]
[1723751844337,1.30000754,57233.0,57232.0,0.030821]
[1723751844871,0.71789154,57233.0,57232.0,0.030821]
[1723751845084,0.71789154,57233.0,57232.0,0.227821]
[1723751845085,0.027,57233.0,57232.0,0.227821]
[1723751845290,0.027,57233.0,57232.0,1.36201621]
[1723751845504,0.027,57233.0,57232.0,0.030821]
[1723751845505,0.33833354,57233.0,57232.0,0.030821]
[1723751845710,0.33833354,57233.0,57232.0,0.010821]
[1723751845711,0.88344954,57233.0,57232.0,0.010821]
[1723751845920,0.88344954,57233.0,57232.0,0.030821]
[1723751845921,0.87044954,57233.0,57232.0,0.030821]
[1723751846150,0.33633354,57233.0,57232.0,0.030821]
[1723751846361,0.60289154,57233.0,57232.0,0.030821]
[1723751846558,0.61389154,57233.0,57232.0,0.030821]
[1723751846764,0.61889154,57233.0,57232.0,0.030821]
[1723751846961,0.005,57233.0,57232.0,0.030821]
[1723751847197,0.005,57233.0,57232.0,0.558921]
[1723751847939,0.279511,57243.0,57237.0,0.02]
[1723751847940,0.139767,57238.0,57237.0,0.02]
[1723751848148,0.31132154,57238.0,57237.0,0.02]
[1723751848344,0.31132154,57238.0,57237.0,0.03]
[1723751849383,0.139769,57237.0,57236.0,0.01]
[1723751849572,0.426301,57238.0,57237.0,0.01]
[1723751849783,1.004369,57238.0,57237.0,0.01]
[1723751849988,0.824835,57238.0,57237.0,0.01]
[1723751850204,1.101369,57238.0,57237.0,0.01]
[1723751850412,1.101369,57238.0,57237.0,0.03]
[1723751850413,0.821835,57238.0,57237.0,0.03]
[1723751850963,0.825835,57238.0,57237.0,0.03]
[1723751851163,0.99738954,57238.0,57237.0,0.03]
[1723751851384,0.99338954,57238.0,57237.0,0.03]
[1723751851734,0.89738954,57238.0,57237.0,0.03]
[1723751852200,0.90038954,57238.0,57237.0,0.03]
[1723751852820,0.90038954,57238.0,57232.0,0.000821]
[1723751852821,0.20155454,57238.0,57235.0,0.01]
[1723751853036,0.419316,57236.0,57235.0,0.01]
[1723751853230,1.27295854,57236.0,57235.0,0.01]
[1723751853464,1.27295854,57236.0,57232.0,0.000821]
[1723751853656,0.978453,57233.0,57232.0,0.000821]
[1723751853858,1.64610829,57233.0,57232.0,0.000821]
[1723751854061,1.74610829,57233.0,57232.0,0.000821]
[1723751854265,1.74610829,57233.0,57232.0,0.010821]
[1723751854463,1.61880754,57233.0,57232.0,0.030821]